{"text_format":"1","workbook":"xlsx","n_sheets":3,"sheets":["liste de vins","vins à commander","vins en stock"],"not_rendered":{"charts":0,"images":0,"macros":1,"external_links":0,"defined_names":3,"comments":0,"pivot_tables":0},"unopened":[],"bounds":{"document_bytes":16777216,"sheet_cells":100000,"rows_first":2000,"rows_last":500,"rows_between":2000,"halvings":0,"cell_chars":16384,"cell_head_chars":4096},"cells_cut":0,"cells_raw":0,"read":"whole","date_system":"1900"}

{"sheet":"liste de vins","index":0,"n_rows":49,"n_cols":17,"rows_kept":49,"cut":false,"hidden":false,"merged":[[0,13,1,13],[0,14,0,16],[3,14,3,16]]}
["NOM","APPELLATION","COULEUR","ANNÉE","PRIX","DATE D'ACHAT\n(MM/JJ/AAAA)","NOMBRE DE\nBOUTEILLES\nACHETÉES","ENSEIGNE /\nREMARQUE","NOMBRE DE\nBOUTEILLES\nCONSOMMÉES","NOMBRE DE\nBOUTEILLES\nRESTANT EN\nCAVE","EMPLACEMENT","NUMÉRO",null,"NOMBRE\nTOTAL","NOMBRE\nDE\nBOUTEILLES"]
["Château Lusseau 2014","GRAVES","Rouge",2014,null,"2018-04-10",2,"Caves de la Rocade",1,{"$f":"IF(OR(G2=\"\",I2=\"\"),\"\",G2-I2)","v":1},"Étagère 3","R16",null,null,"\"Rouge\"","\"Blanc\"","\"Champagne\""]
["Château Cap Saint Martin 2015","BLAYE","Rouge",2015,null,"2018-04-10",4,"Caves de la Rocade",0,{"$f":"IF(OR(G3=\"\",I3=\"\"),\"\",G3-I3)","v":4},"Étagère 1","R17",null,{"$f":"O3+P3+Q3","v":144},61,53,30]
["Lyseras 2017","SAINT JOSEPH","Blanc",2017,null,"2019-01-22",2,"Caves de la Rocade",1,1,"Étagère 4","B9",null,null,"ANNÉE LA PLUS ANCIENNE"]
["Confidences Prieuré Lichine 2015","MARGAUX","Rouge",2015,27.9,"2019-01-22",2,"Caves de la Rocade",2,0,"Étagère 2","R7",null,null,2014,2017,2022]
["La réserve de Malartic 2014","PESSAC LÉOGNAN","Rouge",2014,24.8,"2019-01-22",1,"Caves de la Rocade",0,1,"Étagère 3","R6"]
["Domaine Fontaine Gagnard 2017","CHASSAGNE MONTRACHET","Blanc",2017,44,"2019-01-05",1,"Caves de la Rocade",0,1,"Étagère 4","B5"]
["Château Canon St Michel 2015","GRAVES","Rouge",2015,14.8,"2019-05-19",1,"Caves de la Rocade",0,1,"Étagère 3","R15"]
["Bellissima ","CÔTE RÔTIE","Rouge",2016,19.5,"2019-06-22",2,"Caves de la Rocade",2,0,"Étagère 2"]
["Au Bas de Poillange 2018","SAINT ROMAIN","Blanc",2018,20,"2019-01-08",6,"Domaine Capitain-Gagnerot",1,5,"Étagère 4","B8"]
["Aux Ravioles 2017","VOSNE ROMANÉE","Rouge",2017,36,"2019-01-08",5,"Domaine Capitain-Gagnerot",5,0,"Étagère 2","R11"]
["La Toppe au Vert 2017","ALOXE CORTON","Rouge",2017,28,"2019-01-08",6,"Domaine Capitain-Gagnerot",4,2,"Étagère 3","R10"]
["Domaine Fontaine Gagnard 2018","CHASSAGNE MONTRACHET","Blanc",2018,44,"2020-01-14",4,"Caves de la Rocade",1,3,"Étagère 4","B10"]
["Ladoix Les Hautes Mourottes 2018","LADOIX","Blanc",2018,28,"2020-01-31",6,"Domaine Capitain-Gagnerot",4,2,"Étagère 4","B13"]
["Ladoix Les Gréchons 2018","LADOIX","Blanc",2018,27,"2020-01-31",6,"Domaine Capitain-Gagnerot",1,5,"Étagère 4","B12"]
["Rully 1er Cru La Pucelle 2018","RULLY","Blanc",2018,15,"2020-05-22",6,"Domaine (Jean Charles)",1,5,"Étagère 4","B17"]
["Rully 1er Cru Les Crêts 2018","MERCUREY","Rouge",2018,15,"2020-05-22",6,"Domaine (Jean Charles)",3,3,"Étagère 3","R29"]
["Quintaine 2017","VIRÉ CLESSÉ","Blanc",2017,14,"12/18/2020",24,"Domaine Michel (Ronan)",24,0,null,"B18"]
["Riesling 2018","RIESLING","Blanc",2018,25,"2021-02-14",2,"Cadeau Sophie St Valentin",1,1,"Étagère 4","B19"]
["Domaine FERRET 2017","POUILLY FUISSÉ","Blanc",2017,23.99,"2021-03-03",2,"Métro",1,1,"Étagère 4","B20"]
["Morgeot 1er Cru 2017","CHASSAGNE MONTRACHET","Rouge",2017,31.07,"2021-03-03",3,"Métro",2,1,"Étagère 3","R32"]
["Ronan By Client 2012","POMEROL","Rouge",2012,6,"2021-03-30",6,"Joyaux des Vignes",6,0,null,"R36"]
["Clos René 2015","POMEROL","Rouge",2015,28.79,"2021-04-29",8,"Métro",2,6,"Étagère 1 et 2","R37"]
["Château Montlabert 2015","ST ÉMILION","Rouge",2015,17.39,"2021-04-29",12,"Métro",4,8,"Étagère 2","R38"]
["Pagus Luminis 2019","CONDRIEU","Blanc",2019,31.89,"2021-07-30",6,"Caves de la Rocade",1,5,"Étagère 3 et 4","B6"]
["Ermitage 2020","MENETOU SALON","Blanc",2020,8.8699999999999992,"2021-05-10",24,"Métro",24,0,"Garage"]
["Connétable Talbot 2016","SAINT JULIEN","Rouge",2016,23.99,"2021-05-10",6,"Métro",1,5,"Étagère 1","R40"]
["Sirène de Giscours 2016","MARGAUX","Rouge",2016,27.11,"2021-05-10",6,"Métro",0,6,"Étagère 1, 2 et 3","R39"]
["Les Vaumuriens 2017","POMMARD","Rouge",2017,null,"2022-01-01",1,"Cadeau Anthony",1,0,null,"R44"]
["Les Grésigny 2018","RULLY","Blanc",2018,28,"2022-03-13",6,"Cave Moillard",0,6,"Étagère 4","B24"]
["Les Hauts Jarrons 2018","SAVIGNY LES BEAUNE","Blanc",2018,34,"2022-03-13",6,"Cave Moillard",0,6,"Étagère 4","B25"]
["Les Argillats 2019","NUITS ST GEORGES","Rouge",2019,46,"2022-03-13",3,"Cave Moillard",0,3,"Étagère 1","R48"]
["Les Rugiens 2016","POMMARD","Rouge",2016,58,"2022-03-13",3,"Cave Moillard",0,3,"Étagère 1","R47"]
["Les Fichots 2018","PERNAND VERGELESS","Rouge",2018,28,"2022-03-13",6,"Cave Moillard",0,6,"Étagère 1","R46"]
["Château La Peyre 2015","ST ESTÈPHE","Rouge",2015,21.67,"2022-04-21",12,"Ariès Vins",7,5,"Étagère 3","R49"]
["Etoile by Haut Nouchet blanc 2020","PESSAC LÉOGNAN","Blanc",2020,12.9,"2022-06-05",6,"Domaine Haut Nouchet",4,2,"Étagère 5","B26"]
["S de Schlumberger 2022","ALSACE","Blanc",2022,12.1,"2022-05-20",30,"Domaine Schlumberger",28,2,"Cuisine","B27"]
["Naudé-22","CHAMPAGNE","Champagne",2022,18.05,"2022-06-21",24,"Jean Charles",22,2,"Garage"]
["Quintaine 2019","VIRÉ CLESSÉ","Blanc",2019,15.8,"2022-09-27",4,"Domaine Michel (Ronan)",0,4,"Étagère 5"]
["Domaine Moillard 2018","HAUTES CÔTES DE NUITS","Blanc",2018,18,"11/25/2022",1,"Cave Moillard",1,0,"Étagère 4"]
["Au Grand Bussière 2019","SAINT VÉRAN","Blanc",2019,null,"2023-06-18",1,"Cadeau Marie/Alizée",0,1,"Étagère 3","B44"]
["Champagne Canard Duchêne","CHAMPAGNE","Champagne",2023,null,"2023-06-20",1,"Cadeau Jean Charles/Michèle",0,1,"Garage"]
["Champagne Tribaut 2023","CHAMPAGNE","Champagne",2023,19.739999999999998,"2023-06-07",6,"Métro",0,6,"Garage"]
["Aloxe Corton Fanny Sabre 2018","ALOXE CORTON","Rouge",2018,null,"2023-06-07",1,"Cadeau Alizée",0,1,"Étagère 1","R46"]
["Château Meyney 2016","ST ESTÈPHE","Rouge",2016,23.99,"2023-06-07",1,"Cadeau Marie/Alizée",0,1,"Étagère 4"]
["Auxey Duresses 2020","AUXEY DURESSES","Rouge",2020,15.48,"2023-06-07",2,"Cadeau Marie/Alizée",0,2,"Étagère 3"]
["Château de Bligny","CHAMPAGNE","Champagne",2023,null,"2023-07-22",1,"Cadeau Marc/Maria",0,1,"Garage"]
["Les Chauchoux 2020","RULLY","Rouge",2020,20.39,"2023-06-08",2,"Cadeau Marie/Alizée",0,2,"Étagère 4"]
["Champagne Drapier","CHAMPAGNE","Champagne",2023,null,"2023-08-14",1,"Cadeau Fred/Béa",0,1,"Garage"]

{"sheet":"vins à commander","index":1,"n_rows":1,"n_cols":12,"rows_kept":1,"cut":false,"hidden":false,"merged":[]}
["NOM","APPELLATION","COULEUR","ANNÉE","PRIX","DATE D'ACHAT\n(MM/JJ/AAAA)","NOMBRE DE\nBOUTEILLES\nACHETÉES","ENSEIGNE /\nREMARQUE","NOMBRE DE\nBOUTEILLES\nCONSOMMÉES","NOMBRE DE\nBOUTEILLES\nRESTANT EN\nCAVE","EMPLACEMENT","NUMÉRO"]

{"sheet":"vins en stock","index":2,"n_rows":1,"n_cols":12,"rows_kept":1,"cut":false,"hidden":false,"merged":[]}
["NOM","APPELLATION","COULEUR","ANNÉE","PRIX","DATE D'ACHAT\n(MM/JJ/AAAA)","NOMBRE DE\nBOUTEILLES\nACHETÉES","ENSEIGNE /\nREMARQUE","NOMBRE DE\nBOUTEILLES\nCONSOMMÉES","NOMBRE DE\nBOUTEILLES\nRESTANT EN\nCAVE","EMPLACEMENT","NUMÉRO"]